fUSD/lending_fUSD_20241221
["ID","MTS","AMOUNT","RATE_DAILY","PERIOD"]
[346240633,1734799838385,-500.0,0.00020979,2]
[346240635,1734799838394,-376.61915724,0.00020979,2]
[346240637,1734799838407,-133.24914015,0.00020979,2]
[346240639,1734799838416,-524.70053487,0.00020979,2]
[346240641,1734799838426,-78.62422643,0.00020979,2]
[346240644,1734799838437,-421.37577357,0.00020979,2]
[346240646,1734799838446,-197.52508718,0.00020979,2]
[346240648,1734799838457,-302.47491282,0.00020979,2]
[346240650,1734799838467,-178.41626218,0.00020979,2]
[346240652,1734799838478,-321.58373782,0.00020979,2]
[346240654,1734799838488,-207.11022049,0.00020979,2]
[346240656,1734799838500,-292.88977951,0.00020979,2]
[346240658,1734799838510,-500.0,0.00020979,2]
[346240660,1734799838519,-500.0,0.00020979,2]
[346240662,1734799838528,-500.0,0.00020979,2]
[346240664,1734799838538,-500.0,0.00020979,2]
[346240666,1734799838547,-500.0,0.00020979,2]
[346240668,1734799838559,-266.17,0.00020979,2]
[346240670,1734799838568,-541.41,0.00020979,2]
[346240672,1734799838577,-500.0,0.00020979,2]
[346240674,1734799838586,-183.8347437,0.00020979,2]
[346240675,1734799838595,-500.0,0.00020979,2]
[346240677,1734799838604,-583.0,0.00020979,2]
[346240679,1734799838616,-392.5,0.00020979,2]
[346240681,1734799838625,-328.68,0.00020979,2]
[346240683,1734799838634,-500.0,0.00020979,2]
[346240685,1734799838643,-500.0,0.00020979,2]
[346240687,1734799838652,-500.0,0.00020979,2]
[346240689,1734799838661,-1000.0,0.00020979,3]
[346240691,1734799838670,-106.84707103,0.00020979,2]
[346240693,1734799838689,-393.15292897,0.00020979,2]
[346240695,1734799838698,-500.0,0.00020979,2]
[346240696,1734799838708,-500.0,0.00020979,2]
[346240697,1734799838718,-500.0,0.00020979,2]
[346240698,1734799838727,-500.0,0.00020979,2]
[346240699,1734799838736,-500.0,0.00020979,2]
[346240700,1734799838745,-240.3,0.00020979,2]
[346240701,1734799838755,-618.8065991,0.00020979,2]
[346240702,1734799838764,-500.0,0.00020979,2]
[346240703,1734799838773,-500.0,0.00020979,2]
[346240704,1734799838782,-500.0,0.00020979,2]
[346240705,1734799838791,-500.0,0.00020979,2]
[346240706,1734799838802,-394.39,0.00020979,2]
[346240707,1734799838812,-500.0,0.00020979,2]
[346240708,1734799838821,-500.0,0.00020979,2]
[346240709,1734799838830,-500.0,0.00020979,2]
[346240710,1734799838839,-500.0,0.00020979,2]
[346240711,1734799838848,-500.0,0.00020979,2]
[346240712,1734799838858,-790.17,0.00020979,2]
[346240713,1734799838868,-500.0,0.00020979,2]
[346240714,1734799838883,-500.0,0.00020979,2]
[346240715,1734799838892,-500.0,0.00020979,2]
[346240716,1734799838901,-597.88811687,0.00020979,2]
[346240717,1734799838911,-500.0,0.00020979,2]
[346240718,1734799838922,-500.0,0.00020979,2]
[346240719,1734799838931,-500.0,0.00020979,2]
[346240720,1734799838941,-500.0,0.00020979,2]
[346240721,1734799838951,-500.0,0.00020979,2]
[346240722,1734799838961,-500.0,0.00020979,2]
[346240723,1734799838970,-500.0,0.00020979,2]
[346240724,1734799838979,-500.0,0.00020979,2]
[346240725,1734799838989,-500.0,0.00020979,2]
[346240726,1734799838998,-910.15,0.00020979,2]
[346240727,1734799839008,-500.0,0.00020979,2]
[346240728,1734799839018,-500.0,0.00020979,2]
[346240729,1734799839028,-712.43,0.00020979,2]
[346240730,1734799839037,-500.0,0.00020979,2]
[346240731,1734799839046,-706.19,0.00020979,2]
[346240732,1734799839059,-871.32,0.00020979,2]
[346240733,1734799839068,-500.0,0.00020979,2]
[346240734,1734799839077,-500.0,0.00020979,2]
[346240735,1734799839086,-1280.43,0.00020979,2]
[346240736,1734799839096,-723.62,0.00020979,2]
[346240737,1734799839105,-500.0,0.00020979,2]
[346240738,1734799839115,-500.0,0.00020979,2]
[346240739,1734799839124,-273.527866,0.00020979,2]
[346240740,1734799839134,-500.0,0.00020979,2]
[346240741,1734799839144,-500.0,0.00020979,2]
[346240742,1734799839154,-605.27,0.00020979,2]
[346240743,1734799839163,-198.25,0.00020979,2]
[346240744,1734799839173,-500.0,0.00020979,2]
[346240745,1734799839183,-176.11924987,0.00020979,2]
[346240747,1734799840048,-150.0,0.00020163,2]
[346240748,1734799840059,-390.98075013,0.00020979,2]
[346240749,1734799840068,-500.0,0.00020979,2]
[346240750,1734799840077,-500.0,0.00020979,2]
[346240751,1734799840087,-500.0,0.00020979,2]
[346240752,1734799840097,-1207.88,0.00020979,2]
[346240753,1734799840107,-665.12,0.00020979,2]
[346240754,1734799840116,-230.45275145,0.00020979,2]
[346240755,1734799840159,-269.54724855,0.00020979,2]
[346240756,1734799840169,-66.78894917,0.00020979,2]
[346240791,1734799842932,-5000.0,0.0002088,2]
[346240792,1734799842942,-176.05105083,0.00020979,2]
[346240793,1734799842952,-194.16,0.00020979,2]
[346240794,1734799842962,-500.0,0.00020979,2]
[346240795,1734799842971,-500.0,0.00020979,2]
[346240796,1734799842981,-500.0,0.00020979,2]
[346240797,1734799842990,-552.83,0.00020979,2]
[346240798,1734799842999,-500.0,0.00020979,2]
[346240799,1734799843009,-651.330071,0.00020979,2]
[346240800,1734799843018,-588.68,0.00020979,2]
[346240801,1734799843028,-500.0,0.00020979,2]
[346240802,1734799843037,-67.54887817,0.00020979,2]
[346240803,1734799843048,-432.45112183,0.00020979,2]
[346240804,1734799843060,-545.82404395,0.00020979,2]
[346240805,1734799843069,-500.0,0.00020979,2]
[346240806,1734799843079,-362.36194576,0.00020979,2]
[346240807,1734799843088,-912.2,0.00020979,2]
[346240808,1734799843097,-500.0,0.00020979,2]
[346240809,1734799843107,-507.68,0.00020979,2]
[346240810,1734799843116,-500.0,0.00020979,2]
[346240811,1734799843125,-500.0,0.00020979,2]
[346240812,1734799843135,-500.0,0.00020979,2]
[346240813,1734799843144,-500.0,0.00020979,2]
[346240814,1734799843153,-500.0,0.00020979,2]
[346240815,1734799843163,-500.0,0.00020979,2]
[346240816,1734799843173,-500.0,0.00020979,2]
[346240817,1734799843182,-500.0,0.00020979,2]
[346240818,1734799843191,-500.0,0.00020979,2]
[346240819,1734799843200,-500.0,0.00020979,2]
[346240820,1734799843210,-500.0,0.00020979,2]
[346240821,1734799843219,-500.0,0.00020979,2]
[346240822,1734799843228,-500.0,0.00020979,2]
[346240823,1734799843238,-1309.67,0.00020979,2]
[346240824,1734799843247,-500.0,0.00020979,2]
[346240825,1734799843256,-500.0,0.00020979,2]
[346240826,1734799843265,-500.0,0.00020979,2]
[346240827,1734799843274,-773.35,0.00020979,2]
[346240828,1734799843284,-500.0,0.00020979,2]
[346240829,1734799843293,-500.0,0.00020979,2]
[346240830,1734799843303,-500.0,0.00020979,2]
[346240831,1734799843316,-500.0,0.00020979,2]
[346240832,1734799843325,-500.0,0.00020979,2]
[346240833,1734799843334,-500.0,0.00020979,2]
[346240834,1734799843344,-541.2,0.00020979,2]
[346240835,1734799843354,-500.0,0.00020979,2]
[346240836,1734799843363,-665.48,0.00020979,2]
[346240837,1734799843373,-500.0,0.00020979,2]
[346240838,1734799843384,-500.0,0.00020979,2]
[346240839,1734799843393,-500.0,0.00020979,2]
[346240840,1734799843404,-866.4,0.00020979,2]
[346240841,1734799843413,-500.0,0.00020979,2]
[346240842,1734799843423,-500.0,0.00020979,2]
[346240843,1734799843432,-781.04,0.00020979,2]
[346240844,1734799843442,-523.73,0.00020979,2]
[346240845,1734799843451,-500.0,0.00020979,2]
[346240846,1734799843461,-500.0,0.00020979,2]
[346240847,1734799843470,-500.0,0.00020979,2]
[346240848,1734799843480,-500.0,0.00020979,2]
[346240849,1734799843489,-500.0,0.00020979,2]
[346240850,1734799843498,-500.0,0.00020979,2]
[346240851,1734799843507,-641.01,0.00020979,2]
[346240852,1734799843516,-675.65,0.00020979,2]
[346240853,1734799843526,-500.0,0.00020979,2]
[346240854,1734799843535,-500.0,0.00020979,2]
[346240855,1734799843544,-1539.58,0.00020979,2]
[346240856,1734799843554,-839.46,0.00020979,2]
[346240857,1734799843569,-500.0,0.00020979,2]
[346240858,1734799843579,-507.5168132,0.00020979,2]
[346240859,1734799843588,-1410.11,0.00020979,2]
[346240860,1734799843597,-500.0,0.00020979,2]
[346240861,1734799843607,-2093.84,0.00020979,2]
[346240862,1734799843616,-1727.59,0.00020979,2]
[346240863,1734799843625,-3391.45,0.00020979,2]
[346240864,1734799843634,-500.0,0.00020979,2]
[346240865,1734799843644,-500.0,0.00020979,2]
[346240866,1734799843653,-500.0,0.00020979,2]
[346240867,1734799843825,-500.0,0.00020979,2]
[346240868,1734799843836,-1140.77,0.00020979,2]
[346240869,1734799843846,-500.0,0.00020979,2]
[346240870,1734799843855,-500.0,0.00020979,2]
[346240871,1734799843864,-500.0,0.00020979,2]
[346240872,1734799843878,-1787.84,0.00020979,2]
[346240873,1734799843888,-500.0,0.00020979,2]
[346240874,1734799843897,-500.0,0.00020979,2]
[346240875,1734799843906,-500.0,0.00020979,2]
[346240876,1734799843916,-323.154404,0.00020979,2]
[346240877,1734799843925,-500.0,0.00020979,2]
[346240878,1734799843934,-500.0,0.00020979,2]
[346240879,1734799843944,-500.0,0.00020979,2]
[346240880,1734799843955,-1253.14,0.00020979,2]
[346240881,1734799843964,-1107.4,0.00020979,2]
[346240882,1734799843973,-591.91,0.00020979,2]
[346240883,1734799843982,-500.0,0.00020979,2]
[346240884,1734799843992,-562.96,0.00020979,2]
[346240885,1734799844001,-500.0,0.00020979,2]
[346240886,1734799844011,-500.0,0.00020979,2]
[346240887,1734799844020,-500.0,0.00020979,2]
[346240888,1734799844029,-500.0,0.00020979,2]
[346240889,1734799844038,-994.43,0.00020979,2]
[346240890,1734799844048,-681.92,0.00020979,2]
[346240891,1734799844058,-500.0,0.00020979,2]
[346240892,1734799844068,-586.5,0.00020979,2]
[346240893,1734799844078,-961.06,0.00020979,2]
[346240894,1734799844087,-2577.03,0.00020979,2]
[346240895,1734799844097,-367.13978058,0.00020979,2]
[346240896,1734799844106,-816.02,0.00020979,2]
[346240897,1734799844115,-500.0,0.00020979,2]
[346240898,1734799844124,-1423.77,0.00020979,2]
[346240899,1734799844134,-500.0,0.00020979,2]
[346240900,1734799844143,-500.0,0.00020979,2]
[346240901,1734799844152,-2383.25,0.00020979,2]
[346240902,1734799844162,-500.0,0.00020979,2]
[346240903,1734799844171,-500.0,0.00020979,2]
[346240904,1734799844181,-844.79,0.00020979,2]
[346240905,1734799844190,-500.0,0.00020979,2]
[346240906,1734799844199,-500.0,0.00020979,2]
[346240907,1734799844208,-432.12,0.00020979,2]
[346240908,1734799844217,-500.0,0.00020979,2]
[346240909,1734799844227,-4660.8,0.00020979,2]
[346240910,1734799844236,-500.0,0.00020979,2]
[346240911,1734799844245,-500.0,0.00020979,2]
[346240912,1734799844254,-500.0,0.00020979,2]
[346240913,1734799844264,-500.0,0.00020979,2]
[346240914,1734799844274,-500.0,0.00020979,2]
[346240915,1734799844283,-500.0,0.00020979,2]
[346240916,1734799844292,-557.78,0.00020979,2]
[346240917,1734799844302,-500.0,0.00020979,2]
[346240918,1734799844312,-449.79248799,0.00020979,2]
[346240919,1734799844326,-50.20751201,0.00020979,2]
[346240920,1734799844335,-1811.72,0.00020979,2]
[346240921,1734799844344,-500.0,0.00020979,2]
[346240922,1734799844354,-500.0,0.00020979,2]
[346240923,1734799844364,-500.0,0.00020979,2]
[346240924,1734799844374,-765.24,0.00020979,2]
[346240925,1734799844383,-500.0,0.00020979,2]
[346240926,1734799844392,-500.0,0.00020979,2]
[346240927,1734799844402,-500.0,0.00020979,2]
[346240928,1734799844411,-622.38,0.00020979,2]
[346240929,1734799844420,-500.0,0.00020979,2]
[346240930,1734799844429,-500.0,0.00020979,2]
[346240931,1734799844438,-500.0,0.00020979,2]
[346240932,1734799844447,-500.0,0.00020979,2]
[346240933,1734799844457,-500.0,0.00020979,2]
[346240934,1734799844466,-21199.28093245,0.0002098,3]
[346240935,1734799844489,-4832.35938424,0.0002098,3]
[346240936,1734799844499,-22756.70931,0.0002098,3]
[346240937,1734799844510,-1087.83172208,0.0002098,3]
[346240941,1734799845955,-1500.0,0.00020879,2]
[346240942,1734799845965,-499.0,0.00020979,2]
[346240943,1734799846012,-91.36,0.00020979,2]
[346240944,1734799846022,-500.0,0.00020979,2]
[346240945,1734799846032,-129996.73383206,0.0002098,3]
[346240946,1734799846071,-37019.51510889,0.0002098,3]
[346240947,1734799846082,-4473.86594032,0.0002098,3]
[346240948,1734799846093,-6371.44,0.0002098,3]
[346240949,1734799846125,-1760.00000008,0.0002098,3]
[346240950,1734799846182,-500.0,0.0002098,3]
[346240953,1734799936110,1854.0,0.0002,2]
[346240954,1734799936938,1668.0,0.0002,2]
[346240955,1734800008322,326.92,0.0002,2]
[346240956,1734800021579,150.0,0.0002,2]
[346240957,1734800190321,219.15,0.00019868,2]
[346240958,1734800193802,294.22,0.0002,2]
[346240959,1734800238469,1783.0,0.0002,2]
[346240960,1734800239474,8427.02411478,0.0002,2]
[346240961,1734800257227,371.75,0.00019863,2]
[346240963,1734800379776,264.8,0.0002,2]
[346240964,1734800413834,250.0,0.00019862,2]
[346240965,1734800439667,3989.75843326,0.0001988,2]
[346240966,1734800460965,158639.87678513,0.0001988,2]
[346240967,1734800550549,250.0,0.00019857,2]
[346240968,1734800552591,213.97,0.00019857,2]
[346240969,1734800565537,238.32,0.0002,2]
[346240970,1734800638579,5818.1196,0.0002,2]
[346240972,1734800661018,8061.04,0.000202,120]
[346240973,1734800661347,5000.0,0.0002,2]
[346240974,1734800687249,5000.0,0.0002,2]
[346240975,1734800708806,300.0,0.00019847,2]
[346240976,1734800751396,214.49,0.0002,2]
[346240977,1734800758965,516.78,0.00017905,2]
[346240978,1734800918740,1000.0,0.0002,2]
[346240979,1734800937141,193.04,0.0002,2]
[346240980,1734800959217,1000.0,0.0002,2]
[346240981,1734800991415,1000.0,0.00019786,2]
[346240988,1734801032171,-216.06,0.00020078,30]
[346240989,1734801032181,-302.84,0.00020153,2]
[346240990,1734801032229,-5740.41632709,0.00020153,2]
[346240991,1734801032241,-17210.09189731,0.00020153,2]
[346240992,1734801032292,-1428.30294052,0.00020153,2]
[346240993,1734801032456,-4447.96782159,0.00020153,2]
[346240994,1734801032511,-6948.82482686,0.00020153,2]
[346241003,1734801038055,-2081.19277453,0.00020153,2]
[346241004,1734801038067,-1504.3634121,0.00020153,2]
[346241005,1734801038077,-150.0,0.00020163,2]
[346241006,1734801038086,-775.17639208,0.00020163,2]
[346241007,1734801038097,-1234.82360792,0.00020163,2]
[346241008,1734801038106,-1265.0,0.00020163,2]
[346241009,1734801038115,-632.0,0.00020163,2]
[346241010,1734801038125,-565.0,0.00020163,2]
[346241011,1734801038134,-150.0,0.00020163,2]
[346241012,1734801038144,-1898.0,0.00020163,2]
[346241013,1734801038153,-1255.0,0.00020163,2]
[346241014,1734801038162,-924.0,0.00020163,2]
[346241015,1734801038171,-818.0,0.00020163,2]
[346241016,1734801038181,-3769.0,0.00020163,2]
[346241017,1734801038190,-536.0,0.00020163,2]
[346241018,1734801038202,-3681.0,0.00020163,2]
[346241019,1734801038212,-516.78,0.00020168,2]
[346241020,1734801038222,-13754.0,0.00020175,2]
[346241021,1734801038234,-1170.0,0.00020175,2]
[346241022,1734801038243,-150.0,0.00020175,2]
[346241023,1734801038252,-3886.0,0.00020175,2]
[346241024,1734801038262,-150.0,0.00020244,4]
[346241025,1734801038272,-150.0,0.00020244,4]
[346241026,1734801038282,-150.0,0.00020244,4]
[346241027,1734801038291,-600.0,0.00020273,2]
[346241028,1734801038301,-500.0,0.00020273,2]
[346241029,1734801038310,-150.0,0.00020384,4]
[346241030,1734801038321,-617.068,0.0002042,2]
[346241031,1734801038330,-150.0,0.00020525,4]
[346241032,1734801038339,-150.0,0.00020666,4]
[346241033,1734801038348,-425.92150301,0.000207,2]
[346241034,1734801038358,-150.0,0.00020712,2]
[346241035,1734801038367,-150.0,0.00020725,2]
[346241036,1734801038376,-150.0,0.00020727,2]
[346241037,1734801038386,-1500.0,0.00020732,2]
[346241039,1734801038396,-150.0,0.00020741,2]
[346241041,1734801038405,-150.0,0.00020743,2]
[346241043,1734801038415,-150.0,0.00020767,2]
[346241045,1734801038424,-625.53728,0.0002077,2]
[346241047,1734801038433,-5675.72020023,0.00020779,2]
[346241049,1734801038443,-656.21974738,0.0002078,2]
[346241051,1734801038454,-1199.63045763,0.000208,2]
[346241053,1734801038466,-1800.36954237,0.000208,2]
[346241055,1734801038475,-150.0,0.00020803,2]
[346241056,1734801038484,-150.0,0.00020806,4]
[346241057,1734801038493,-853.5795583,0.00020818,2]
[346241058,1734801038512,-1877.9214417,0.00020818,2]
[346241059,1734801038521,-179.299,0.00020818,2]
[346241060,1734801038530,-150.0,0.00020823,2]
[346241061,1734801038540,-1500.0,0.00020823,2]
[346241062,1734801038548,-150.0,0.00020832,2]
[346241063,1734801038558,-1326.48816086,0.00020848,2]
[346241066,1734801040319,-671.38032187,0.00020848,2]
[346241067,1734801040351,-3677.85171743,0.00020848,2]
[346241068,1734801040360,-219.15,0.00020862,2]
[346241069,1734801040369,-48352.70813679,0.00020878,2]
[346241070,1734801040378,-2167.8291,0.00020878,2]
[346241071,1734801040388,-1000.0,0.00020878,2]
[346241072,1734801040397,-1000.0,0.00020879,2]
[346241073,1734801040406,-1995.3251,0.00020879,2]
[346241074,1734801040416,-24896.4491,0.00020879,2]
[346241075,1734801040425,-5000.0,0.00020879,2]
[346241076,1734801040435,-307.32326584,0.00020879,2]
[346241077,1734801040444,-174.49473549,0.00020879,2]
[346241078,1734801040454,-225.77707082,0.00020879,2]
[346241079,1734801040463,-331.50253439,0.0002088,2]
[346241080,1734801040472,-150.0,0.00020897,2]
[346241081,1734801040482,-741.13,0.00020899,2]
[346241082,1734801040491,-500.0,0.00020899,2]
[346241083,1734801040500,-500.0,0.00020899,2]
[346241084,1734801040509,-1476.35,0.00020899,2]
[346241085,1734801040519,-702.03,0.00020899,2]
[346241086,1734801040528,-1364.66,0.00020899,2]
[346241087,1734801040537,-1296.91,0.00020899,2]
[346241088,1734801040547,-1718.23,0.00020899,2]
[346241089,1734801040556,-587.14,0.00020899,2]
[346241090,1734801040565,-500.0,0.00020899,2]
[346241091,1734801040574,-500.0,0.00020899,2]
[346241092,1734801040583,-5470.43,0.00020899,2]
[346241093,1734801040592,-500.0,0.00020899,2]
[346241094,1734801040602,-591.48,0.00020899,2]
[346241095,1734801040611,-500.0,0.00020899,2]
[346241096,1734801040621,-500.0,0.00020899,2]
[346241097,1734801040630,-500.0,0.00020899,2]
[346241098,1734801040639,-500.0,0.00020899,2]
[346241099,1734801040649,-500.0,0.00020899,2]
[346241100,1734801040658,-500.0,0.00020899,2]
[346241101,1734801040667,-500.0,0.00020899,2]
[346241102,1734801040676,-570.39,0.00020899,2]
[346241103,1734801040686,-500.0,0.00020899,2]
[346241104,1734801040695,-500.0,0.00020899,2]
[346241105,1734801040707,-500.0,0.00020899,2]
[346241106,1734801040717,-500.0,0.00020899,2]
[346241107,1734801040726,-6953.43460639,0.000209,5]
[346241118,1734801043480,-1094.03660195,0.000209,5]
[346241119,1734801043494,-500.0,0.000209,5]
[346241120,1734801043588,-102220.3970227,0.000209,5]
[346241121,1734801043598,-5675.72020016,0.00020917,2]
[346241122,1734801043610,-1500.0,0.00020928,2]
[346241123,1734801043621,-150.0,0.00020938,2]
[346241124,1734801043632,-150.0,0.00020947,4]
[346241125,1734801043643,-150.0,0.00020956,2]
[346241126,1734801043655,-236.29932824,0.00020969,2]
[346241127,1734801043667,-153.18,0.00020969,2]
[346241128,1734801043678,-153.18,0.00020969,2]
[346241129,1734801043690,-236.29932824,0.0002097,2]
[346241130,1734801043701,-153.18,0.0002097,2]
[346241131,1734801043717,-153.18,0.0002097,2]
[346241132,1734801043728,-500.0,0.00020973,2]
[346241133,1734801043739,-162.78921752,0.00020973,2]
[346241134,1734801043749,-500.0,0.00020977,2]
[346241135,1734801043760,-637.41,0.00020977,2]
[346241136,1734801043771,-885.16,0.00020977,2]
[346241137,1734801043781,-500.0,0.00020977,2]
[346241138,1734801043792,-500.0,0.00020977,2]
[346241139,1734801043804,-922.62,0.00020977,2]
[346241140,1734801043815,-500.0,0.00020977,2]
[346241141,1734801043826,-500.0,0.00020977,2]
[346241142,1734801043837,-2299.71,0.00020977,2]
[346241143,1734801043849,-1513.78,0.00020977,2]
[346241144,1734801043864,-1452.06,0.00020977,2]
[346241145,1734801043877,-2020.76,0.00020977,2]
[346241146,1734801043891,-1200.93,0.00020977,2]
[346241147,1734801043903,-560.69,0.00020977,2]
[346241148,1734801043914,-567.25,0.00020977,2]
[346241149,1734801043925,-552.14,0.00020977,2]
[346241150,1734801043937,-2543.03,0.00020977,2]
[346241151,1734801043947,-500.0,0.00020977,2]
[346241152,1734801043961,-500.0,0.00020977,2]
[346241153,1734801043973,-500.0,0.00020977,2]
[346241154,1734801043984,-500.0,0.00020977,2]
[346241155,1734801043995,-500.0,0.00020977,2]
[346241156,1734801044006,-500.0,0.00020977,2]
[346241157,1734801044018,-733.35,0.00020977,2]
[346241158,1734801044029,-596.45,0.00020977,2]
[346241159,1734801044040,-500.0,0.00020978,2]
[346241160,1734801044050,-508.56968089,0.00020978,2]
[346241161,1734801044062,-500.0,0.00020978,2]
[346241162,1734801044073,-500.0,0.00020978,2]
[346241163,1734801044084,-500.0,0.00020978,2]
[346241164,1734801044096,-500.0,0.00020978,2]
[346241165,1734801044106,-505.27252061,0.00020978,2]
[346241166,1734801044116,-500.0,0.00020978,2]
[346241167,1734801044126,-500.0,0.00020978,2]
[346241168,1734801044137,-224.85,0.00020978,2]
[346241169,1734801044147,-500.0,0.00020978,2]
[346241170,1734801044157,-500.0,0.00020978,2]
[346241171,1734801044167,-500.0,0.00020978,2]
[346241172,1734801044178,-500.0,0.00020978,2]
[346241173,1734801044188,-500.0,0.00020978,2]
[346241174,1734801044200,-500.0,0.00020978,2]
[346241175,1734801044218,-500.0,0.00020978,2]
[346241176,1734801044230,-500.0,0.00020978,2]
[346241177,1734801044241,-500.0,0.00020978,2]
[346241178,1734801044251,-507.49275968,0.00020978,2]
[346241179,1734801044263,-500.0,0.00020978,2]
[346241180,1734801044273,-205.09322342,0.00020978,2]
[346241181,1734801044283,-500.0,0.00020978,2]
[346241182,1734801044296,-500.0,0.00020978,2]
[346241183,1734801044308,-500.0,0.00020978,2]
[346241185,1734801044322,-500.0,0.00020978,2]
[346241186,1734801044332,-500.0,0.00020978,2]
[346241187,1734801044342,-500.0,0.00020978,2]
[346241188,1734801044352,-250.74,0.00020978,2]
[346241189,1734801044363,-500.0,0.00020978,2]
[346241190,1734801044373,-500.0,0.00020978,2]
[346241191,1734801044385,-262.130872,0.00020978,2]
[346241192,1734801044396,-500.0,0.00020978,2]
[346241193,1734801044406,-500.0,0.00020978,2]
[346241194,1734801044417,-500.0,0.00020978,2]
[346241195,1734801044427,-500.0,0.00020978,2]
[346241196,1734801044442,-464.68,0.00020978,2]
[346241197,1734801044452,-500.0,0.00020978,2]
[346241198,1734801044467,-624.191318,0.00020978,2]
[346241199,1734801044477,-500.0,0.00020978,2]
[346241200,1734801044487,-500.0,0.00020978,2]
[346241201,1734801044498,-500.0,0.00020978,2]
[346241202,1734801044508,-378.82,0.00020978,2]
[346241203,1734801044518,-518.85,0.00020978,2]
[346241204,1734801044528,-500.0,0.00020978,2]
[346241205,1734801044539,-500.0,0.00020978,2]
[346241206,1734801044549,-500.0,0.00020978,2]
[346241207,1734801044560,-500.0,0.00020978,2]
[346241208,1734801044571,-500.0,0.00020978,2]
[346241209,1734801044581,-500.0,0.00020978,2]
[346241210,1734801044591,-269.12318443,0.00020978,2]
[346241211,1734801044606,-230.87681557,0.00020978,2]
[346241212,1734801044617,-500.0,0.00020978,2]
[346241213,1734801044627,-438.12318443,0.00020978,2]
[346241214,1734801044670,-313.84240775,0.00020899,2]
[346241217,1734801046158,-186.15759225,0.00020899,2]
[346241218,1734801046169,-347.49240115,0.00020899,2]
[346241219,1734801046223,-152.50759885,0.00020899,2]
[346241220,1734801046234,-61.87681557,0.00020978,2]
[346241221,1734801046245,-500.0,0.00020978,2]
[346241222,1734801046255,-757.24,0.00020978,2]
[346241223,1734801046267,-327.92551433,0.00020978,2]
[346241224,1734801046277,-486.05126222,0.00020978,2]
[346241225,1734801046437,-13.94873778,0.00020978,2]
[346241226,1734801046447,-500.0,0.00020978,2]
[346241227,1734801046459,-500.0,0.00020978,2]
[346241228,1734801046471,-500.0,0.00020978,2]
[346241229,1734801046481,-500.0,0.00020978,2]
[346241230,1734801046491,-529.8,0.00020978,2]
[346241231,1734801046502,-500.0,0.00020978,2]
[346241232,1734801046512,-676.77,0.00020978,2]
[346241233,1734801046523,-409.49,0.00020978,2]
[346241234,1734801046533,-500.0,0.00020978,2]
[346241235,1734801046543,-1157.56,0.00020978,2]
[346241236,1734801046553,-500.0,0.00020978,2]
[346241237,1734801046563,-500.0,0.00020978,2]
[346241238,1734801046574,-500.0,0.00020978,2]
[346241239,1734801046584,-500.0,0.00020978,2]
[346241240,1734801046594,-500.0,0.00020978,2]
[346241241,1734801046604,-500.0,0.00020978,2]
[346241242,1734801046615,-713.44,0.00020978,2]
[346241243,1734801046625,-500.0,0.00020978,2]